[Event "SixDays Budapest January-IMA 2023"]
[Site "Budapest"]
[Date "2023.01.25"]
[Round "5.4"]
[White "Magold, Filip"]
[Black "Ihnat, Marek"]
[Result "1-0"]
[ECO "A10"]
[WhiteElo "2230"]
[BlackElo "2138"]
[Annotator "TA"]
[PlyCount "83"]
[EventDate "2023.01.23"]
[EventType "tourn"]
[EventCountry "HUN"]
[SourceTitle "playchess.com"]
[Source "ChessBase"]
[SourceQuality "1"]
[TimeControl "5400+30"]

{[%evp 9,83,53,64,41,37,34,36,34,50,26,58,21,34,31,31,0,0,0,10,-20,39,13,47,34,84,37,37,41,43,43,64,68,92,75,136,109,159,0,123,104,162,109,168,148,146,143,169,133,203,209,194,103,294,294,294,312,292,302,457,436,449,482,466,382,662,607,689,669,776,804,1064,1037,2671,537,2381,2277]} 1. c4 {[%emt 0:00:11]} g6 {[%emt 0:01:05]} 2. Nc3 {[%emt 0:00:09]} Bg7 {[%emt 0:00:23]} 3. d4 {[%emt 0:00:15]} c5 {[%emt 0:02:14]} 4. d5 {[%emt 0:02:21]} Bxc3+ {[%emt 0:02:18]} 5. bxc3 {[%emt 0:00:20]} Nf6 {[%emt 0:00:24]} 6. Qd3 {[%emt 0:03:07] A40: Unusual replies to 1 d4.} Qa5 {[%emt 0:00:46]} 7. Bd2 {[%emt 0:02:15]} d6 {[%emt 0:01:18]} 8. e4 {[%emt 0:01:47][%cal Be2e4,Be4e5][%mdl 32] Wards off Bf5. White is slightly better.} Nbd7 {[%emt 0:00:25]} 9. f4 {[%emt 0:00:50]} Nb6 {[%emt 0:04:04]} 10. Nf3 {[%emt 0:04:15][%cal Oa2a4]} (10. a4 $5) 10... Bg4 {[%emt 0:03:37] [#]} 11. Nh4 $146 {[%emt 0:07:32]} ({Predecessor:} 11. Be2 O-O-O 12. O-O Bxf3 13. Bxf3 Nfd7 14. Rfb1 Qa4 15. Be2 g5 16. Rb5 gxf4 17. Bxf4 {½-½ Gailiunaite,S (1892)-Semonaviciute,M (1761) LTU-ch (Women) 2016 (4)}) 11... O-O-O {[%emt 0:02:10]} 12. e5 {[%emt 0:01:48]} (12. h3 $5 {[%cal Rh3g4]} Bd7 13. Be2 $14) 12... Ne8 {[%emt 0:03:32]} 13. h3 {[%emt 0:06:13]} Bd7 {[%emt 0:00:13]} 14. Be2 {[%emt 0:03:03][%cal Oa2a4]} Kb8 {[%emt 0:02:25]} (14... Nc7 $11) 15. O-O {[%emt 0:01:05][%cal Oa2a4]} Ng7 {[%emt 0:02:05] [#]} 16. a4 $1 {[%emt 0:06:21]} Nf5 {[%emt 0:01:56] [#]} (16... e6 $14) (16... Rhe8 17. g4) 17. Nxf5 {[%emt 0:00:25]} (17. Be1 $1 $16) 17... Bxf5 $14 {[%emt 0:00:21]} 18. Qf3 {[%emt 0:02:37]} h5 {[%emt 0:04:50]} 19. Ra2 {[%emt 0:02:20]} Rdf8 {[%emt 0:01:11]} 20. Rfa1 {[%emt 0:03:57][%cal Bf1a1,Ba1b1,Bb1b5][%mdl 32]} Bd7 {[%emt 0:06:44]} 21. Bd3 {[%emt 0:05:27]} Nc8 {[%emt 0:05:23]} (21... Ka8 $142) 22. Rb2 {[%emt 0:01:45]} Nb6 {[%emt 0:00:59]} (22... Rhg8 $142) 23. Rba2 {[%emt 0:03:55]} Nc8 $1 {[%emt 0:00:15]} 24. Rb1 {[%emt 0:00:05][%cal Oe5e6]} Nb6 {[%emt 0:00:18]} (24... Rhg8 $16) 25. Qd1 {[%emt 0:01:49]} ({White should play} 25. Qe2 $18) 25... Bc8 {[%emt 0:18:44]} (25... Re8 $16) 26. Be1 {[%emt 0:02:52][%cal Bd2e1,Be1h4,Bh4g5][%mdl 32]} Nd7 {[%emt 0:01:41]} 27. Rb5 {[%emt 0:09:08] White is more active.} Qc7 {[%emt 0:01:15]} 28. e6 {[%emt 0:00:33]} fxe6 {[%emt 0:01:22]} (28... Nf6 $16) 29. dxe6 $18 {[%emt 0:00:02]} ({Inferior is} 29. Bxg6 Rxf4 30. Bxh5 (30. dxe6 Ne5 $17) 30... Rg8 $17) 29... Nf6 {[%emt 0:00:32] [#]} 30. Qe2 {[%emt 0:01:43]} ({Resist} 30. Bxg6 $6 Bxe6 31. Rab2 Bxc4 $16) (30. Rab2 $1 $18) 30... Rfg8 $2 {[%emt 0:02:49] A mistake that costs the game.} (30... Ne8 $16) 31. Bh4 {[%emt 0:01:54]} Rh7 {[%emt 0:03:08]} 32. a5 {[%emt 0:00:35]} Rhg7 {[%emt 0:02:45]} 33. Rab2 {[%emt 0:00:45]} Re8 {[%emt 0:02:32]} (33... g5 {was called for.} 34. fxg5 Rxg5) 34. Qf3 {[%emt 0:02:23]} a6 {[%emt 0:03:36]} 35. Rb6 {[%emt 0:00:17] aiming for Rc6.} Ka7 {[%emt 0:00:16]} 36. Bg5 {[%emt 0:01:12]} Qb8 $2 {[%emt 0:02:00]} (36... Rd8 37. Kh2 Qb8) 37. g3 {[%emt 0:00:45] White is clearly winning.} Rd8 {[%emt 0:06:35]} 38. Bf1 {[%emt 0:03:08]} d5 {[%emt 0:00:10]} 39. cxd5 {[%emt 0:00:37]} Nxd5 {[%emt 0:00:27] [#]} 40. c4 $1 {[%emt 0:00:10]} Nxb6 {[%emt 0:01:07]} (40... Nb4 41. Qe3) 41. axb6+ {[%emt 0:00:04]} Ka8 {[%emt 0:00:11] Strongly threatening ...Qd6.} 42. Ra2 {[%emt 0:00:04] Weighted Error Value: White=0.25 (precise) /Black=0.45} 1-0

[Event "SixDays Budapest January-IMA 2023"]
[Site "Budapest"]
[Date "2023.01.25"]
[Round "5.5"]
[White "Baski, Barnabas"]
[Black "Orso, Miklos"]
[Result "1/2-1/2"]
[ECO "A05"]
[WhiteElo "2188"]
[BlackElo "2256"]
[Annotator "TA"]
[PlyCount "90"]
[EventDate "2023.01.23"]
[EventType "tourn"]
[EventCountry "HUN"]
[SourceTitle "playchess.com"]
[Source "ChessBase"]
[SourceQuality "1"]
[TimeControl "5400+30"]

{[%evp 14,90,20,3,13,-58,-34,-48,17,12,35,25,41,35,34,38,35,25,51,45,107,109,101,106,112,91,93,97,103,103,106,100,120,85,83,35,116,111,106,17,23,18,22,0,0,0,0,0,2,4,5,8,2,4,14,14,31,10,9,8,14,14,14,14,14,0,20,0,113,0,6,0,0,0,8,0,0,0,10]} 1. Nf3 {[%emt 0:00:02]} Nf6 {[%emt 0:01:32]} 2. g3 {[%emt 0:00:26]} g6 {[%emt 0:01:55]} 3. b3 {[%emt 0:00:06]} Bg7 {[%emt 0:00:07]} 4. Bb2 {[%emt 0:00:05]} d5 {[%emt 0:01:12]} 5. c4 {[%emt 0:03:01]} c6 {[%emt 0:00:12]} 6. Bg2 {[%emt 0:00:17]} O-O {[%emt 0:00:08]} 7. O-O {[%emt 0:01:04]} Nbd7 {[%emt 0:00:08]} 8. d4 {[%emt 0:02:24]} b5 $1 {[%emt 0:02:45][%mdl 4] [#] is recently more successful than 8...Ne4. D78: Fianchetto Grünfeld: 6 0-0 c6.} 9. Qd3 $146 {[%emt 0:20:25]} (9. Ne5 $11 Qb6 10. cxb5 cxb5 11. Nc3) ({Predecessor:} 9. cxd5 cxd5 10. Ne5 Bb7 11. Nd3 Ne4 12. Nd2 Qb6 13. e3 Rfc8 14. b4 a5 15. Nc5 Ndxc5 16. dxc5 {0-1 Svane,R (2637)-Oparin,G (2681) Wch Blitz Warsaw 2021 (20)}) 9... bxc4 $15 {[%emt 0:17:55]} 10. bxc4 {[%emt 0:00:08]} Ba6 {[%emt 0:01:29]} (10... Rb8 $1 $15 11. Qa3 Qb6) 11. Nbd2 $11 {[%emt 0:00:48]} Rb8 {[%emt 0:08:11]} (11... dxc4 {is interesting.} 12. Qa3 c3 13. Qxa6 cxb2 14. Rab1 Rb8) 12. Qa3 {[%emt 0:08:04]} Bxc4 {[%emt 0:04:57]} 13. Nxc4 {[%emt 0:00:19]} dxc4 {[%emt 0:00:11]} 14. Nd2 {[%emt 0:03:47]} Nb6 {[%emt 0:03:41]} 15. Rac1 {[%emt 0:01:34]} c5 {[%emt 0:01:34]} 16. Nxc4 {[%emt 0:04:44]} ({And not} 16. Qxa7 Nfd5 17. Bxd5 Qxd5 $17) 16... cxd4 {[%emt 0:01:56]} (16... Nxc4 $14 17. Rxc4 Nd7) 17. Ne5 {[%emt 0:09:07][%cal Oe5c6] Hoping for Nc6!} Qd6 {[%emt 0:03:08]} 18. Nc6 {[%emt 0:04:27]} Rb7 {[%emt 0:02:10]} 19. Qxd6 {[%emt 0:04:15]} (19. Nxa7 $2 Qxa3 20. Bxa3 Rxa7 $19) 19... exd6 {[%emt 0:00:03]} 20. Bxd4 {[%emt 0:01:18]} d5 {[%emt 0:04:17]} 21. Rfd1 {[%emt 0:03:34] White has more active pieces.} Re8 {[%emt 0:04:26]} 22. e3 {[%emt 0:01:05]} Rd7 {[%emt 0:01:09]} 23. Bh3 {[%emt 0:05:58] [#] Strongly threatening Bxf6. This pair of bishops is nice.} Rc7 {[%emt 0:02:26]} 24. Na5 {[%emt 0:01:55]} (24. Nb4 $16 Rc4 25. a3) 24... Nc4 {[%emt 0:05:50]} ({Better is} 24... Rxc1 $14 25. Rxc1 Ne4) 25. Nxc4 {[%emt 0:09:27]} dxc4 {[%emt 0:00:18]} 26. Rc2 {[%emt 0:00:08]} ({White should play} 26. Bf1 $16) 26... Ne4 {[%emt 0:05:36]} 27. Bg2 {[%emt 0:02:44]} f5 {[%emt 0:02:51]} 28. Bxg7 {[%emt 0:05:19]} Kxg7 {[%emt 0:00:03]} 29. Bxe4 Rxe4 {[%mdl 4096] Endgame KRR-KRR} 30. Rc3 {[%emt 0:00:33]} Re5 {[%emt 0:03:38]} 31. Rd4 {[%emt 0:00:33]} Rec5 {[%emt 0:01:58]} 32. Kg2 {[%emt 0:00:35]} Kf6 {[%emt 0:00:10]} 33. h3 {[%emt 0:00:52]} R5c6 {[%emt 0:03:17]} 34. g4 {[%emt 0:01:05]} h5 {[%emt 0:05:07]} 35. Kg3 {[%emt 0:00:49]} hxg4 {[%emt 0:00:45]} 36. hxg4 {[%emt 0:00:06]} fxg4 {[%emt 0:03:48]} 37. Kxg4 {[%emt 0:00:49]} Kf7 {[%emt 0:00:17]} 38. f4 {[%emt 0:01:22]} Kf6 {[%emt 0:01:52]} 39. e4 {[%emt 0:00:27]} Ke6 {[%emt 0:01:38]} 40. e5 {[%emt 0:01:24]} Ke7 {[%emt 0:01:02] [#]} (40... Rc8 $11) 41. Kg5 {[%emt 0:01:05]} ({White must play} 41. Kf3 $1 $16) 41... Kf7 {[%emt 0:00:08] The position is equal.} 42. Re4 {[%emt 0:00:43]} Ke6 {[%emt 0:01:08]} 43. Rd4 {[%emt 0:00:06]} (43. Kxg6 $2 {too greedy.} Kd5+ 44. e6 Kxe4 $19) 43... Kf7 {[%emt 0:00:08]} 44. Re4 {[%emt 0:01:30]} Ke6 {[%emt 0:00:03]} 45. Rd4 {[%emt 0:00:05]} (45. Kxg6 $2 {is the wrong capture.} Kd5+ 46. e6 Kxe4 $19) 45... Kf7 {[%emt 0:00:06] Weighted Error Value: White=0.17 (very precise) /Black=0.17 (very precise)} 1/2-1/2

[Event "SixDays Budapest January-IMA 2023"]
[Site "Budapest"]
[Date "2023.01.28"]
[Round "9.1"]
[White "Heimisson, Hilmir Freyr"]
[Black "Ongut, Tamas Gunes"]
[Result "1/2-1/2"]
[ECO "B22"]
[WhiteElo "2321"]
[BlackElo "2340"]
[Annotator "TA"]
[PlyCount "74"]
[EventDate "2023.01.23"]
[EventType "tourn"]
[EventCountry "HUN"]
[SourceTitle "playchess.com"]
[Source "ChessBase"]
[SourceQuality "1"]
[TimeControl "5400+30"]

{[%evp 9,74,0,0,12,11,5,6,6,6,0,38,38,40,0,0,0,22,16,41,-6,37,28,33,29,80,75,84,18,18,0,0,0,0,-6,-6,-6,-8,-8,-8,-14,0,0,0,0,0,0,0,0,0,0,0,0,0,0,0,0,0,0,0,0,0,0,222,0,0,0,95]} 1. e4 {[%emt 0:04:12]} c5 {[%emt 0:00:11]} 2. c3 {[%emt 0:00:21]} Nf6 {[%emt 0:00:10]} 3. e5 {[%emt 0:00:04]} Nd5 {[%emt 0:00:07]} 4. Nf3 {[%emt 0:00:05]} d6 {[%emt 0:00:06]} 5. Bb5+ {[%emt 0:00:13]} Bd7 {[%emt 0:00:55]} 6. Bc4 {[%emt 0:00:09] B22: Sicilian: 2 c3.} e6 {[%emt 0:01:30]} 7. d4 {[%emt 0:03:55]} cxd4 {[%emt 0:01:40]} 8. Bxd5 {[%emt 0:03:21]} (8. Qxd4 Nc6 9. Qe4 dxe5 10. Nxe5 Nf6 $15) 8... exd5 {[%emt 0:00:09]} 9. O-O {[%emt 0:00:09] [#]} Bg4 $146 {[%emt 0:15:48]} ({Predecessor:} 9... Be6 10. Nxd4 dxe5 11. Nxe6 fxe6 12. Qh5+ Kd7 13. c4 d4 14. Qxe5 Nc6 15. Qb5 Qb6 {1-0 Blomqvist,E (2544)-Nandhidhaa,P (2358) Rilton Cup 50th 2022 (6)}) 10. exd6 {[%emt 0:25:16]} ({Much weaker is} 10. Qxd4 Bxf3 11. gxf3 Nc6 12. Qxd5 dxe5 $15) 10... Bxd6 {[%emt 0:05:38]} 11. Re1+ {[%emt 0:05:06]} (11. Qxd4 $5 Bxf3 12. Qxg7 $11) 11... Kf8 {[%emt 0:04:18]} 12. h3 {[%emt 0:02:10]} (12. Qxd4 Bxf3 13. gxf3 Nc6 $17) 12... Bh5 {[%emt 0:02:13]} 13. cxd4 {[%emt 0:05:11]} ({But not} 13. Qxd4 Bxf3 14. gxf3 Nc6 $15) 13... Nc6 {[%emt 0:01:12]} 14. Be3 {[%emt 0:02:22]} (14. Nc3 $14 {feels stronger.}) 14... Qd7 {[%emt 0:12:41]} 15. Nc3 {[%emt 0:05:50]} Rd8 {[%emt 0:04:47]} 16. Nxd5 {[%emt 0:04:46] A dynamic duo of knights.} Bh2+ {[%emt 0:11:25]} 17. Kxh2 $16 {[%emt 0:01:58]} Qxd5 {[%emt 0:00:06] [#]} 18. b3 {[%emt 0:02:07]} (18. Rc1 $1 $16) 18... Bxf3 $11 {[%emt 0:00:56]} 19. Qxf3 {[%emt 0:00:08]} Qxf3 {[%emt 0:00:05]} 20. gxf3 {[%emt 0:00:11][%cal Od4d5] Strongly threatening d5!} Nb4 {[%emt 0:03:24]} (20... Nxd4 $2 21. Rad1 $18) 21. d5 {[%emt 0:15:32] Hoping for Bc5+.} Nc2 $1 {[%emt 0:03:11]} 22. Bc5+ {[%emt 0:00:05]} Kg8 {[%emt 0:00:05]} 23. Be7 {[%emt 0:01:00]} Ra8 {[%emt 0:00:08]} 24. d6 {[%emt 0:04:21][%cal Od6d7] Black must now prevent d7!} Nxe1 {[%emt 0:01:20]} 25. Rxe1 {[%emt 0:00:20][%mdl 4096] Endgame Threatens to win with d7. KRR-KRB} f6 {[%emt 0:00:10][%cal Bf7f6,Bf6f5][%mdl 32]} 26. d7 {[%emt 0:01:11]} Kf7 {[%emt 0:00:08]} 27. Bd6 {[%emt 0:00:41]} f5 $1 {[%emt 0:02:52]} 28. Bc7 {[%emt 0:07:54] Prevents Rhd8.} Rad8 {[%emt 0:00:09]} 29. Rd1 {[%emt 0:01:01]} Ke6 {[%emt 0:01:58]} 30. Bxd8 {[%emt 0:00:05]} Rxd8 {[%emt 0:00:06] KR-KR} 31. Re1+ {[%emt 0:00:04]} Kf6 {[%emt 0:00:22]} 32. Rd1 {[%emt 0:00:06]} Ke6 {[%emt 0:00:05]} 33. Re1+ {[%emt 0:00:40]} Kf6 {[%emt 0:00:06]} 34. Rd1 {[%emt 0:03:05]} Ke6 {[%emt 0:00:08]} 35. Kg3 {[%emt 0:00:04] And now Kf4 would win.} h6 $2 {[%emt 0:10:39] [#]} (35... Rxd7 $11 {and Black has nothing to worry.} 36. Rxd7 Kxd7) 36. Re1+ $2 {[%emt 0:00:45]} (36. Kf4 $1 $18) 36... Kf6 {[%emt 0:00:06]} (36... Kxd7 37. Rd1+ Ke8 38. Rxd8+ Kxd8 39. Kf4 $18) 37. Rd1 {[%emt 0:00:05] aiming for h4.} Ke5 {Weighted Error Value: White=0.17 (very precise) /Black=0.18 (very precise)} (37... Ke6 $11 {keeps the balance.}) 1/2-1/2

[Event "SixDays Budapest January-IMA 2023"]
[Site "Budapest"]
[Date "2023.01.28"]
[Round "9.2"]
[White "Magold, Filip"]
[Black "Szeberenyi, Adam"]
[Result "0-1"]
[ECO "B40"]
[WhiteElo "2230"]
[BlackElo "2331"]
[Annotator "TA"]
[PlyCount "64"]
[EventDate "2023.01.23"]
[EventType "tourn"]
[EventCountry "HUN"]
[SourceTitle "playchess.com"]
[Source "ChessBase"]
[SourceQuality "1"]
[TimeControl "5400+30"]

{[%evp 12,64,39,47,35,29,25,26,25,26,39,33,55,0,0,-25,29,25,37,19,32,12,22,0,124,129,135,127,142,88,95,29,114,46,38,40,22,20,24,-156,-133,-191,-129,-140,-131,-332,-250,-223,-246,-268,-182,-943,-925,-1096,-1083]} 1. e4 {[%emt 0:00:04]} c5 {[%emt 0:00:05]} 2. Nf3 {[%emt 0:00:03][%cal Bg1f3,Bf3d4,Bd4b5,Bb5c7][%mdl 32]} e6 {[%emt 0:00:04]} 3. d4 {[%emt 0:00:04]} cxd4 {[%emt 0:00:04]} 4. Nxd4 {[%emt 0:00:03]} Nf6 {[%emt 0:00:05]} 5. Nc3 {[%emt 0:00:07]} Nc6 {[%emt 0:00:05]} 6. Ndb5 {[%emt 0:00:16]} Bc5 {[%emt 0:00:47]} 7. Bf4 {[%emt 0:01:11] Strongly threatening Nc7+. The main line 7.Bf4 scores better than 7.Nd6+.} O-O {[%emt 0:00:34] B45: Sicilian Four Knights.} 8. Bc7 {[%emt 0:00:09]} Qe7 {[%emt 0:00:09] aiming for ...d5.} 9. Bd6 $1 {[%emt 0:00:01]} Bxd6 {[%emt 0:00:11] White has an edge.} 10. Qxd6 {[%emt 0:00:03]} Qd8 {[%emt 0:00:26]} 11. Nc7 {[%emt 0:06:47]} Rb8 {[%emt 0:09:07][%cal Ob7b5]} 12. O-O-O {[%emt 0:02:14]} (12. Be2 $14) 12... a6 $11 {[%emt 0:03:24]} 13. N7d5 {[%emt 0:06:24] [#]} b5 $146 {[%emt 0:14:52]} (13... Ne8 $142 14. Qg3 exd5 15. exd5 d6 16. dxc6 bxc6) ({Predecessor:} 13... exd5 14. exd5 Ne8 15. Qg3 Qc7 16. dxc6 Qxg3 17. hxg3 dxc6 18. Bc4 Nf6 19. Rhe1 Re8 20. Rxe8+ Nxe8 {½-½ Harikrishna,P (2719)-Duda,J (2753) Pepe Cuenca Invitational 2020 (1.9)}) 14. Nxf6+ $1 {[%emt 0:03:40]} Qxf6 {[%emt 0:00:21]} 15. f4 {[%emt 0:01:39]} Bb7 {[%emt 0:05:00]} 16. g3 {[%emt 0:02:44]} Rfc8 {[%emt 0:07:17]} 17. Bg2 {[%emt 0:03:18]} (17. Qxd7 b4 18. Na4 b3 19. axb3 Nb4 $17) 17... b4 {[%emt 0:09:26]} (17... Na5 $11 {keeps the balance.}) 18. Na4 $1 $16 {[%emt 0:11:27] Hoping for Nb6.} Qd8 {[%emt 0:05:40] Wards off Nb6} 19. Nc5 $1 {[%emt 0:04:49]} (19. Qxd7 $2 Qa5 20. Qd3 (20. b3 $2 Rd8 $19) 20... Qxa4 $19) 19... b3 {[%emt 0:02:14]} 20. Nxb3 {[%emt 0:05:18]} (20. axb3 $6 Nb4 21. c3 (21. Qxd7 $2 Qa5 $19) 21... Qa5 22. cxb4 Qxb4 $14) (20. cxb3 $142 {[%cal Oc1b1] Kb1! would be deadly.} Nb4 21. Kb1) 20... Na5 {[%emt 0:09:39]} 21. Kb1 {[%emt 0:08:49] Black is weak on the dark squares} (21. Qxd7 $16 Qb6 22. Kb1) 21... Bc6 {[%emt 0:04:19]} (21... Nc4 $1 $11 22. Qd4 (22. Qxd7 Qxd7 23. Rxd7 a5 $11) 22... Qc7) 22. Rd4 {[%emt 0:05:28]} ({Better is} 22. Nxa5 $16 Qxa5 23. b3) 22... Nb7 $14 {[%emt 0:05:23]} 23. Qa3 {[%emt 0:01:33]} a5 {[%emt 0:00:04][%cal Ba6a5,Ba5a4][%mdl 32]} 24. Rhd1 {[%emt 0:03:40]} Qb6 {[%emt 0:00:16]} 25. R4d2 $2 {[%emt 0:07:10] [#]} (25. Bh1 $11) 25... a4 $1 $17 {[%emt 0:05:57]} 26. Nd4 {[%emt 0:02:23] [#]} (26. Na1 $17) 26... Na5 {[%emt 0:00:05]} ({Black should try} 26... Nd6 $1 $19 {[%cal Rd6c4] Threatens to win with ...Nc4.} 27. Bf1 (27. Qxd6 $2 Qxb2#) (27. Nxc6 $2 Nc4 $19) 27... Nxe4) 27. Bf1 {[%emt 0:01:38]} Bxe4 $40 {[%emt 0:00:41][%mdl 128] Black attacks with force.} 28. Nb5 $2 {[%emt 0:01:25] Loses the game.} (28. Ka1 $17 {was worth a try.}) 28... Nc4 {[%emt 0:03:29]} 29. Bxc4 {[%emt 0:00:27]} Rxc4 {[%emt 0:00:04]} 30. Nd4 {[%emt 0:04:08]} ({Avoid the trap} 30. Nd6 $2 Rb4 31. b3 axb3 32. Nxe4 bxc2+ 33. Kxc2 Rxe4 $19) 30... f6 {[%emt 0:03:24]} 31. Kc1 $2 {[%emt 0:03:56]} (31. Ka1) 31... Rbc8 $19 {[%emt 0:00:15][%cal Ob6d4] ...Qxd4! is the strong threat.} 32. b3 {[%emt 0:04:51] [#]} Qxd4 $3 {[%mdl 576] Deflection. Beautiful play by Szeberenyi!   Weighted Error Value: White=0.62/Black=0.28 (precise)} 0-1

[Event "SixDays Budapest January-IMA 2023"]
[Site "Budapest"]
[Date "2023.01.28"]
[Round "9.3"]
[White "Baski, Barnabas"]
[Black "Taragan, Uri"]
[Result "1/2-1/2"]
[ECO "A05"]
[WhiteElo "2188"]
[BlackElo "1733"]
[Annotator "TA"]
[PlyCount "37"]
[EventDate "2023.01.23"]
[EventType "tourn"]
[EventCountry "HUN"]
[SourceTitle "playchess.com"]
[Source "ChessBase"]
[SourceQuality "1"]
[TimeControl "5400+30"]

{[%evp 10,37,20,9,18,-18,-3,0,0,-14,8,0,0,0,10,-18,-29,-23,-30,-18,-25,-30,-21,-25,-13,-23,-23,-27,-17,-12]} 1. Nf3 {[%emt 0:00:05]} Nf6 {[%emt 0:00:12]} 2. c4 {[%emt 0:01:04]} e6 {[%emt 0:00:14]} 3. g3 {[%emt 0:00:16]} d5 {[%emt 0:00:08]} 4. Bg2 {[%emt 0:00:16]} d4 {[%emt 0:00:18]} 5. O-O {[%emt 0:01:24]} c5 {[%emt 0:00:21]} 6. e3 {[%emt 0:01:37]} Nc6 {[%emt 0:00:22] A13: English Opening: 1...e6.} 7. Re1 {[%emt 0:03:25]} Bd6 {[%emt 0:11:59]} 8. exd4 {[%emt 0:15:25]} cxd4 {[%emt 0:01:06]} 9. Na3 {[%emt 0:04:23]} a6 {[%emt 0:11:57]} 10. d3 {[%emt 0:06:47]} O-O {[%emt 0:00:42]} 11. Nc2 {[%emt 0:02:14]} a5 {[%emt 0:16:51] [#]} 12. Ncxd4 $146 {[%emt 0:10:37]} ({Predecessor:} 12. a3 e5 13. b3 h6 14. Rb1 Bf5 15. b4 axb4 16. axb4 Re8 17. b5 Nb8 18. Nh4 {0-1 Pavlov,S (2480)-Martirosyan,H (2617) Titled Tuesday intern op 5th May blitz 2020 (2)}) 12... Nxd4 {[%emt 0:00:35]} 13. Nxd4 {[%emt 0:00:07]} Bb4 $1 {[%emt 0:00:19][%csl LRd4,LRe1][%cal Ob4e1]} 14. Nc2 {[%emt 0:03:24][%cal Bd4c2,Bc2e1,Be1f3][%mdl 32] [#] Hoping for Nxb4.} Bxe1 {[%emt 0:00:13]} 15. Nxe1 {[%emt 0:00:08]} e5 {[%emt 0:06:32]} 16. Bd2 {[%emt 0:02:30]} Bg4 {[%emt 0:02:29]} 17. Qc2 {[%emt 0:01:15]} Qd7 {[%emt 0:01:57]} 18. Bc3 {[%emt 0:02:00]} Rfe8 {[%emt 0:00:34]} 19. Nf3 {[%emt 0:04:24] An uneventful encounter.   Weighted Error Value: White=0.07 (flawless) /Black=0.05 (flawless)} 1/2-1/2